fUSD/lending_fUSD_20250202
["ID","MTS","AMOUNT","RATE_DAILY","PERIOD"]
[351295206,1738507882813,-2277.38,0.00011332,2]
[351295207,1738507882823,-721.72,0.00011332,2]
[351295208,1738507882833,-1377.71,0.00011332,2]
[351295209,1738507882843,-2279.51,0.00011332,2]
[351295210,1738507882852,-3234.11,0.00011332,2]
[351295211,1738507882862,-2065.83,0.00011332,2]
[351295212,1738507882871,-2444.18,0.00011332,2]
[351295213,1738507882881,-923.04,0.00011332,2]
[351295214,1738507882891,-500.0,0.00011332,2]
[351295215,1738507882900,-598.81,0.00011332,2]
[351295216,1738507882909,-2057.32,0.00011332,2]
[351295217,1738507882918,-2859.87,0.00011332,2]
[351295218,1738507882927,-1426.23,0.00011332,2]
[351295219,1738507882936,-957.38,0.00011332,2]
[351295220,1738507882946,-500.0,0.00011332,2]
[351295221,1738507882954,-881.82,0.00011332,2]
[351295222,1738507882963,-1074.34,0.00011366,2]
[351295223,1738507882973,-500.0,0.00011366,2]
[351295224,1738507882982,-709.16,0.00011366,2]
[351295225,1738507882991,-500.0,0.00011366,2]
[351295226,1738507883001,-3893.12,0.00011366,2]
[351295227,1738507883010,-2126.09,0.00011366,2]
[351295228,1738507883019,-2169.79,0.00011366,2]
[351295229,1738507883030,-1948.95,0.00011366,2]
[351295230,1738507883040,-589.24,0.00011366,2]
[351295231,1738507883050,-1985.25,0.00011366,2]
[351295232,1738507883059,-2177.8,0.00011366,2]
[351295233,1738507883068,-500.0,0.00011366,2]
[351295234,1738507883078,-1100.18,0.00011366,2]
[351295235,1738507883087,-4118.16,0.00011366,2]
[351295236,1738507883097,-1419.59,0.00011366,2]
[351295237,1738507883107,-1470.16,0.00011366,2]
[351295238,1738507883116,-1829.14,0.00011366,2]
[351295239,1738507883125,-500.0,0.00011366,2]
[351295240,1738507883135,-500.0,0.00011366,2]
[351295241,1738507883144,-5943.67,0.00011366,2]
[351295242,1738507883153,-500.0,0.00011366,2]
[351295243,1738507883163,-361.18,0.00011366,2]
[351295244,1738507883173,-500.0,0.00011366,2]
[351295245,1738507883183,-918.81,0.00011366,2]
[351295246,1738507883192,-500.0,0.00011366,2]
[351295247,1738507883203,-500.0,0.00011366,2]
[351295248,1738507883211,-1511.17,0.00011366,2]
[351295249,1738507883221,-563.03,0.00011366,2]
[351295250,1738507883230,-1186.57,0.00011366,2]
[351295251,1738507883239,-500.0,0.00011366,2]
[351295252,1738507883248,-500.0,0.00011366,2]
[351295253,1738507883258,-500.0,0.00011367,2]
[351295254,1738507883267,-500.0,0.00011367,2]
[351295255,1738507883277,-500.0,0.00011367,2]
[351295256,1738507883287,-500.0,0.00011367,2]
[351295257,1738507883296,-596.82,0.00011367,2]
[351295258,1738507883306,-500.0,0.00011367,2]
[351295259,1738507883316,-516.04,0.00011367,2]
[351295260,1738507883328,-587.12,0.00011367,2]
[351295261,1738507883338,-500.0,0.00011367,2]
[351295262,1738507883347,-500.0,0.00011367,2]
[351295263,1738507883356,-500.0,0.00011367,2]
[351295264,1738507883366,-500.0,0.00011367,2]
[351295265,1738507883376,-500.0,0.00011367,2]
[351295266,1738507883385,-500.0,0.00011367,2]
[351295267,1738507883395,-500.0,0.00011367,2]
[351295268,1738507883405,-500.0,0.00011367,2]
[351295269,1738507883414,-500.0,0.00011367,2]
[351295270,1738507883424,-500.0,0.00011367,2]
[351295271,1738507883436,-500.0,0.00011367,2]
[351295272,1738507883448,-500.0,0.00011367,2]
[351295273,1738507883467,-500.0,0.00011367,2]
[351295274,1738507883477,-500.0,0.00011367,2]
[351295275,1738507883489,-500.0,0.00011367,2]
[351295276,1738507883498,-500.0,0.00011367,2]
[351295277,1738507883509,-500.0,0.00011367,2]
[351295278,1738507883519,-500.0,0.00011367,2]
[351295279,1738507883529,-500.0,0.00011367,2]
[351295280,1738507883539,-500.0,0.00011367,2]
[351295281,1738507883548,-500.0,0.00011367,2]
[351295282,1738507883558,-500.0,0.00011367,2]
[351295283,1738507883567,-500.0,0.00011367,2]
[351295284,1738507883578,-500.0,0.00011367,2]
[351295285,1738507883587,-500.0,0.00011367,2]
[351295286,1738507883597,-500.0,0.00011367,2]
[351295287,1738507883606,-500.0,0.00011367,2]
[351295288,1738507883616,-500.0,0.00011367,2]
[351295289,1738507883625,-500.0,0.00011367,2]
[351295290,1738507883635,-500.0,0.00011367,2]
[351295291,1738507883644,-500.0,0.00011367,2]
[351295292,1738507883654,-554.96,0.00011367,2]
[351295293,1738507883663,-500.0,0.00011367,2]
[351295294,1738507883673,-515.3,0.00011367,2]
[351295295,1738507883683,-500.0,0.00011367,2]
[351295296,1738507883692,-559.68,0.00011367,2]
[351295297,1738507883702,-500.0,0.00011367,2]
[351295298,1738507883712,-500.0,0.00011367,2]
[351295299,1738507883722,-500.0,0.00011367,2]
[351295300,1738507883731,-423.6869066,0.00011367,2]
[351295301,1738507883747,-76.3130934,0.00011367,2]
[351295302,1738507883757,-500.0,0.00011367,2]
[351295303,1738507883766,-500.0,0.00011367,2]
[351295304,1738507883776,-447.1069066,0.00011367,2]
[351295305,1738507883792,-52.8930934,0.00011367,2]
[351295306,1738507883801,-1579.83,0.00011367,2]
[351295307,1738507883811,-597.54,0.00011367,2]
[351295308,1738507883821,-579.06,0.00011367,2]
[351295309,1738507883831,-500.0,0.00011367,2]
[351295310,1738507883841,-500.0,0.00011367,2]
[351295311,1738507883851,-421.23246279,0.00011367,2]
[351295312,1738507883874,-78.76753721,0.00011367,2]
[351295313,1738507883884,-500.0,0.00011367,2]
[351295314,1738507883894,-753.65,0.00011367,2]
[351295315,1738507883904,-619.09,0.00011367,2]
[351295316,1738507883913,-500.0,0.00011367,2]
[351295317,1738507883923,-500.0,0.00011367,2]
[351295318,1738507883932,-48.49246279,0.00011367,2]
[351295319,1738507883944,-708.82753721,0.00011367,2]
[351295320,1738507883954,-500.0,0.00011367,2]
[351295321,1738507883964,-500.0,0.00011367,2]
[351295322,1738507883975,-500.0,0.00011367,2]
[351295323,1738507883985,-500.0,0.00011367,2]
[351295324,1738507883995,-590.1,0.00011367,2]
[351295325,1738507884004,-500.0,0.00011367,2]
[351295326,1738507884014,-541.08,0.00011367,2]
[351295327,1738507884023,-500.0,0.00011367,2]
[351295328,1738507884035,-640.52,0.00011367,2]
[351295329,1738507884045,-647.16,0.00011367,2]
[351295330,1738507884054,-500.0,0.00011367,2]
[351295331,1738507884063,-500.0,0.00011367,2]
[351295332,1738507884073,-500.0,0.00011367,2]
[351295333,1738507884082,-1068.95,0.00011367,2]
[351295334,1738507884092,-552.21,0.00011367,2]
[351295335,1738507884101,-500.0,0.00011367,2]
[351295336,1738507884111,-500.0,0.00011367,2]
[351295337,1738507884120,-500.0,0.00011367,2]
[351295338,1738507884130,-500.0,0.00011367,2]
[351295339,1738507884139,-500.0,0.00011367,2]
[351295340,1738507884148,-500.0,0.00011367,2]
[351295341,1738507884158,-1122.17,0.00011367,2]
[351295342,1738507884167,-500.0,0.00011367,2]
[351295343,1738507884178,-1776.93,0.00011367,2]
[351295344,1738507884189,-500.0,0.00011367,2]
[351295345,1738507884198,-965.67,0.00011367,2]
[351295346,1738507884208,-1225.96,0.00011367,2]
[351295347,1738507884219,-500.0,0.00011367,2]
[351295348,1738507884230,-890.87,0.00011367,2]
[351295349,1738507884240,-744.98,0.00011367,2]
[351295350,1738507884249,-467.42644279,0.00011367,2]
[351295351,1738507884260,-350.24355721,0.00011367,2]
[351295352,1738507884269,-412.0,0.00011367,2]
[351295353,1738507884280,-500.0,0.00011367,2]
[351295354,1738507884290,-3145.45,0.00011367,2]
[351295355,1738507884300,-876.29,0.00011367,2]
[351295356,1738507884310,-505.63785722,0.00011367,2]
[351295357,1738507884320,-1224.34,0.00011367,2]
[351295358,1738507884330,-500.0,0.00011367,2]
[351295359,1738507884339,-785.25,0.00011367,2]
[351295360,1738507884349,-506.14951922,0.00011367,2]
[351295361,1738507884358,-1713.78,0.00011367,2]
[351295362,1738507884368,-890.17,0.00011367,2]
[351295363,1738507884378,-500.0,0.00011367,2]
[351295364,1738507884387,-259.19753052,0.00011367,2]
[351295365,1738507884400,-255.07828786,0.00011367,2]
[351295366,1738507884409,-500.0,0.00011367,2]
[351295367,1738507884419,-92.58739695,0.00011367,2]
[351295368,1738507886351,4073.13538009,0.00023,120]
[351295369,1738508014130,166.0,0.00023,120]
[351295373,1738508556288,5100.0,0.00017,30]
[351295374,1738508585863,722.54,8.219e-05,2]
[351295375,1738508586572,1403.65693186,0.00017,30]
[351295376,1738508604797,5100.0,0.00017,31]
[351295377,1738508606655,300.0,9.838e-05,2]
[351295378,1738508711001,154.39,9.835e-05,2]
[351295379,1738508711096,154.39,9.843e-05,2]
[351295380,1738508711331,154.39,9.851e-05,2]
[351295381,1738508711518,154.39,9.859e-05,2]
[351295382,1738508711718,154.39,9.868e-05,2]
[351295383,1738508712193,154.39,9.876e-05,2]
[351295384,1738508712270,154.39,9.884e-05,2]
[351295386,1738508716404,494.5,9.835e-05,2]
[351295397,1738508761661,179.21,9.871e-05,2]
[351295398,1738508765212,1097.63,0.00016658,30]
[351295399,1738508772532,2000.0,9.884e-05,2]
[351295400,1738508778509,859.85,9.884e-05,2]
[351295404,1738508814997,172.41,9.865e-05,2]
[351295422,1738508830578,5808.54,9.865e-05,2]
[351296441,1738508858863,1210.0,9.805e-05,2]
[351297204,1738508934053,200.0,9.82e-05,2]
[351297232,1738509031739,-4496.99186963,9.909e-05,2]
[351297233,1738509031847,-19403.00813037,9.909e-05,2]
[351297234,1738509031858,-192.47,9.955e-05,2]
[351297235,1738509031868,-673.04,0.00010008,2]
[351297236,1738509031877,-1000.0,0.00010076,2]
[351297237,1738509031887,-586.35,0.00010137,2]
[351297238,1738509031897,-5381.3,0.000102,2]
[351297239,1738509031907,-301.1,0.00010234,2]
[351297240,1738509031917,-256.19,0.00010271,2]
[351297241,1738509031927,-1500.0,0.00010272,2]
[351297242,1738509031936,-3319.48,0.00010294,2]
[351297243,1738509031946,-596.86,0.00010294,2]
[351297244,1738509031956,-175.38,0.00010295,2]
[351297245,1738509031966,-587.54,0.00010317,2]
[351297246,1738509031977,-1685.35,0.0001036,2]
[351297247,1738509031986,-179.89,0.00010378,2]
[351297248,1738509031995,-250.0,0.00010392,2]
[351297249,1738509032005,-186.62,0.00010413,2]
[351297250,1738509032014,-722.54,0.00010469,2]
[351297251,1738509032025,-1100.0,0.000106,3]
[351297252,1738509032034,-2200.0,0.000107,3]
[351297253,1738509032044,-1478.0,0.00010788,2]
[351297254,1738509032054,-3300.0,0.000108,3]
[351297255,1738509032064,-150.0,0.00010899,2]
[351297256,1738509032074,-4400.0,0.000109,3]
[351297257,1738509032084,-2684.73,0.00010959,2]
[351297258,1738509032094,-150.0,0.00010959,2]
[351297259,1738509032103,-408.97039093,0.00011066,2]
[351297260,1738509032113,-2500.0,0.00011128,2]
[351297261,1738509032123,-36278.30530213,0.00011128,2]
[351297262,1738509032132,-5000.0,0.00011131,2]
[351297263,1738509032142,-9133.39381208,0.00011131,2]
[351297264,1738509032152,-1037.73,0.00011194,2]
[351297265,1738509032161,-1075.76,0.00011194,2]
[351297266,1738509032171,-809.15,0.00011194,2]
[351297267,1738509032180,-1000.0,0.00011194,2]
[351297268,1738509032191,-1620.5,0.00011194,2]
[351297269,1738509032201,-500.0,0.00011194,2]
[351297270,1738509032211,-1429.49,0.00011194,2]
[351297271,1738509032220,-1701.95,0.00011194,2]
[351297272,1738509032230,-505.27270496,0.00011195,2]
[351297273,1738509032239,-500.0,0.00011205,2]
[351297274,1738509032249,-36278.30530213,0.00011214,2]
[351297275,1738509032259,-9133.393812,0.00011216,2]
[351297276,1738509032269,-500.0,0.00011227,2]
[351297277,1738509032279,-507.0,0.00011227,2]
[351297278,1738509032288,-1144.71,0.00011227,2]
[351297279,1738509032297,-1893.88,0.00011227,2]
[351297281,1738509032306,-500.0,0.00011227,2]
[351297283,1738509032315,-643.88,0.00011227,2]
[351297285,1738509032325,-995.66,0.00011227,2]
[351297287,1738509032334,-2087.59,0.00011227,2]
[351297289,1738509032343,-500.0,0.00011227,2]
[351297291,1738509032352,-3959.48,0.00011227,2]
[351297292,1738509032362,-846.12,0.00011227,2]
[351297294,1738509032371,-548.91,0.00011227,2]
[351297295,1738509032381,-1484.11,0.00011227,2]
[351297297,1738509032390,-500.0,0.00011227,2]
[351297298,1738509032400,-500.0,0.00011227,2]
[351297299,1738509032409,-1137.73,0.00011227,2]
[351297300,1738509032418,-788.57,0.00011227,2]
[351297301,1738509032428,-1015.84,0.00011227,2]
[351297302,1738509032437,-500.0,0.00011228,2]
[351297303,1738509032447,-500.0,0.00011228,2]
[351297304,1738509032456,-500.0,0.00011228,2]
[351297305,1738509032466,-500.0,0.00011228,2]
[351297306,1738509032475,-500.0,0.00011228,2]
[351297307,1738509032484,-500.0,0.00011228,2]
[351297308,1738509032493,-500.0,0.00011228,2]
[351297309,1738509032503,-500.0,0.00011228,2]
[351297310,1738509032512,-500.0,0.00011228,2]
[351297311,1738509032522,-398.37499304,0.00011228,2]
[351297312,1738509032532,-603.95,0.00011228,2]
[351297313,1738509032541,-500.0,0.00011228,2]
[351297314,1738509032554,-500.0,0.00011228,2]
[351297315,1738509032564,-500.0,0.00011228,2]
[351297316,1738509032573,-500.0,0.00011228,2]
[351297317,1738509032583,-500.0,0.00011228,2]
[351297318,1738509032593,-500.0,0.00011228,2]
[351297319,1738509032602,-500.0,0.00011228,2]
[351297320,1738509032611,-500.0,0.00011228,2]
[351297321,1738509032620,-500.0,0.00011228,2]
[351297322,1738509032630,-500.0,0.00011228,2]
[351297323,1738509032639,-500.0,0.00011228,2]
[351297324,1738509032649,-500.0,0.00011228,2]
[351297325,1738509032658,-500.0,0.00011228,2]
[351297326,1738509032668,-500.0,0.00011228,2]
[351297327,1738509032677,-500.0,0.00011228,2]
[351297328,1738509032688,-500.0,0.00011228,2]
[351297329,1738509032698,-649.24,0.00011228,2]
[351297330,1738509032708,-500.0,0.00011228,2]
[351297331,1738509032717,-500.0,0.00011228,2]
[351297332,1738509032727,-500.0,0.00011228,2]
[351297333,1738509032737,-500.0,0.00011228,2]
[351297334,1738509032749,-500.0,0.00011228,2]
[351297335,1738509032759,-500.0,0.00011228,2]
[351297336,1738509032768,-648.03,0.00011228,2]
[351297337,1738509032778,-500.0,0.00011228,2]
[351297338,1738509032787,-500.0,0.00011228,2]
[351297339,1738509032797,-303.06519491,0.00011228,2]
[351297340,1738509032811,-196.93480509,0.00011228,2]
[351297341,1738509032820,-604.32,0.00011228,2]
[351297342,1738509032830,-198.74519491,0.00011228,2]
[351297343,1738509032841,-301.25480509,0.00011228,2]
[351297344,1738509032851,-500.0,0.00011228,2]
[351297345,1738509032861,-500.0,0.00011228,2]
[351297346,1738509032870,-500.0,0.00011228,2]
[351297347,1738509032880,-500.0,0.00011228,2]
[351297348,1738509032889,-500.0,0.00011228,2]
[351297349,1738509032899,-19.55799991,0.00011228,2]
[351297350,1738509032911,-480.44200009,0.00011228,2]
[351297351,1738509032920,-500.0,0.00011228,2]
[351297352,1738509032930,-500.0,0.00011228,2]
[351297353,1738509032939,-455.85396205,0.00011228,2]
[351297354,1738509032976,-44.14603795,0.00011228,2]
[351297355,1738509032986,-500.0,0.00011228,2]
[351297356,1738509032995,-633.12,0.00011228,2]
[351297357,1738509033005,-73.7012091,0.00011228,2]
[351297358,1738509033016,-426.2987909,0.00011228,2]
[351297359,1738509033026,-109.8012091,0.00011228,2]
[351297360,1738509033074,-397.51017696,0.00011228,2]
[351297361,1738509033084,-254.96569443,0.00011228,2]
[351297362,1738509033122,-245.03430557,0.00011228,2]
[351297363,1738509033131,-500.0,0.00011228,2]
[351297364,1738509033140,-500.0,0.00011228,2]
[351297365,1738509033151,-500.0,0.00011228,2]
[351297366,1738509033160,-500.0,0.00011228,2]
[351297367,1738509033170,-500.0,0.00011228,2]
[351297368,1738509033180,-500.0,0.00011228,2]
[351297369,1738509033190,-500.0,0.00011228,2]
[351297370,1738509033201,-500.0,0.00011228,2]
[351297371,1738509033211,-500.0,0.00011228,2]
[351297372,1738509033221,-500.0,0.00011228,2]
[351297373,1738509033231,-500.0,0.00011228,2]
[351297374,1738509033242,-587.49,0.00011228,2]
[351297375,1738509033252,-500.0,0.00011228,2]
[351297376,1738509033262,-500.0,0.00011228,2]
[351297377,1738509033272,-500.0,0.00011228,2]
[351297378,1738509033282,-266.880554,0.00011228,2]
[351297379,1738509033292,-500.0,0.00011228,2]
[351297380,1738509033302,-500.0,0.00011228,2]
[351297381,1738509033312,-500.0,0.00011228,2]
[351297382,1738509033322,-500.0,0.00011228,2]
[351297383,1738509033332,-500.0,0.00011228,2]
[351297384,1738509033342,-500.0,0.00011228,2]
[351297385,1738509033351,-155.292379,0.00011228,2]
[351297386,1738509033361,-500.0,0.00011228,2]
[351297387,1738509033371,-500.0,0.00011228,2]
[351297388,1738509033380,-500.0,0.00011228,2]
[351297389,1738509033390,-500.0,0.00011228,2]
[351297390,1738509033400,-500.0,0.00011228,2]
[351297391,1738509033409,-451.00836014,0.00011228,2]
[351297392,1738509033419,-631.98,0.00011228,2]
[351297393,1738509033428,-500.0,0.00011228,2]
[351297394,1738509033438,-500.0,0.00011228,2]
[351297395,1738509033448,-500.0,0.00011228,2]
[351297396,1738509033457,-500.0,0.00011228,2]
[351297397,1738509033467,-500.0,0.00011228,2]
[351297398,1738509033476,-500.0,0.00011228,2]
[351297399,1738509033486,-500.0,0.00011228,2]
[351297400,1738509033496,-197.57927,0.00011228,2]
[351297401,1738509033506,-500.0,0.00011228,2]
[351297402,1738509033516,-500.0,0.00011228,2]
[351297403,1738509033526,-500.0,0.00011228,2]
[351297404,1738509033536,-500.0,0.00011228,2]
[351297405,1738509033548,-500.0,0.00011228,2]
[351297406,1738509033559,-500.0,0.00011228,2]
[351297407,1738509033569,-500.0,0.00011228,2]
[351297408,1738509033579,-496.82311456,0.00011228,2]
[351297409,1738509033589,-603.39,0.00011228,2]
[351297410,1738509033600,-500.0,0.00011228,2]
[351297411,1738509033610,-500.0,0.00011228,2]
[351297412,1738509033620,-500.0,0.00011228,2]
[351297413,1738509033629,-500.0,0.00011228,2]
[351297414,1738509033639,-572.64,0.00011228,2]
[351297415,1738509033649,-620.04,0.00011228,2]
[351297416,1738509033659,-793.77,0.00011228,2]
[351297417,1738509033669,-500.0,0.00011228,2]
[351297418,1738509033678,-564.2,0.00011228,2]
[351297419,1738509033688,-500.0,0.00011228,2]
[351297420,1738509033697,-500.0,0.00011228,2]
[351297421,1738509033707,-500.0,0.00011228,2]
[351297423,1738509033717,-500.0,0.00011228,2]
[351297424,1738509033727,-500.0,0.00011228,2]
[351297425,1738509033737,-342.73233068,0.00011228,2]
[351297426,1738509033751,-1514.01,0.00011228,2]
[351297427,1738509033761,-500.0,0.00011228,2]
[351297428,1738509033771,-500.0,0.00011228,2]
[351297429,1738509033781,-500.0,0.00011228,2]
[351297430,1738509033791,-619.92,0.00011228,2]
[351297431,1738509033800,-500.0,0.00011228,2]
[351297432,1738509033810,-500.0,0.00011228,2]
[351297433,1738509033821,-593.29,0.00011228,2]
[351297434,1738509033832,-500.0,0.00011228,2]
[351297435,1738509033843,-500.0,0.00011228,2]
[351297436,1738509033853,-500.0,0.00011228,2]
[351297437,1738509033862,-500.0,0.00011228,2]
[351297438,1738509033872,-500.0,0.00011228,2]
[351297439,1738509033882,-500.0,0.00011228,2]
[351297440,1738509033892,-722.25,0.00011228,2]
[351297441,1738509033902,-500.0,0.00011228,2]
[351297442,1738509033912,-500.0,0.00011228,2]
[351297443,1738509033922,-500.0,0.00011228,2]
[351297444,1738509033931,-768.02,0.00011228,2]
[351297445,1738509033941,-551.14487755,0.00011228,2]
[351297446,1738509033950,-500.0,0.00011228,2]
[351297447,1738509033960,-500.0,0.00011228,2]
[351297448,1738509033969,-796.48,0.00011228,2]
[351297449,1738509033979,-500.0,0.00011228,2]
[351297450,1738509033989,-500.0,0.00011228,2]
[351297451,1738509033999,-500.0,0.00011228,2]
[351297452,1738509034008,-500.0,0.00011228,2]
[351297453,1738509034018,-500.0,0.00011228,2]
[351297454,1738509034029,-518.54,0.00011228,2]
[351297455,1738509034038,-2490.0,0.00011228,2]
[351297456,1738509034048,-500.0,0.00011228,2]
[351297457,1738509034057,-500.0,0.00011228,2]
[351297458,1738509034067,-687.42,0.00011228,2]
[351297459,1738509034076,-755.99,0.00011228,2]
[351297460,1738509034086,-500.0,0.00011228,2]
[351297461,1738509034096,-631.91,0.00011228,2]
[351297462,1738509034105,-500.0,0.00011228,2]
[351297463,1738509034115,-500.0,0.00011228,2]
[351297464,1738509034125,-500.0,0.00011228,2]
[351297465,1738509034135,-500.0,0.00011228,2]
[351297466,1738509034145,-792.41,0.00011228,2]
[351297467,1738509034155,-500.0,0.00011228,2]
[351297468,1738509034165,-500.0,0.00011228,2]
[351297469,1738509034175,-500.0,0.00011228,2]
[351297470,1738509034184,-500.0,0.00011228,2]
[351297471,1738509034194,-512.1906315,0.00011228,2]
[351297472,1738509034205,-521.83844576,0.00011228,2]
[351297473,1738509034214,-500.0,0.00011228,2]
[351297474,1738509034224,-1169.86,0.00011228,2]
[351297475,1738509034234,-500.0,0.00011228,2]
[351297476,1738509034244,-500.0,0.00011228,2]
[351297477,1738509034254,-713.69,0.00011228,2]
[351297478,1738509034265,-500.0,0.00011228,2]
[351297479,1738509034275,-500.0,0.00011228,2]
[351297480,1738509034285,-500.0,0.00011228,2]
[351297481,1738509034295,-500.0,0.00011228,2]
[351297482,1738509034305,-1075.41,0.00011228,2]
[351297483,1738509034315,-505.6,0.00011228,2]
[351297484,1738509034324,-500.0,0.00011228,2]
[351297485,1738509034334,-316.26891589,0.00011228,2]
[351297486,1738509034344,-500.0,0.00011228,2]
[351297487,1738509034354,-500.0,0.00011228,2]
[351297488,1738509034364,-1702.89,0.00011228,2]
[351297489,1738509034373,-191.27405906,0.00011228,2]
[351297490,1738509034383,-500.0,0.00011228,2]
[351297491,1738509034393,-500.0,0.00011228,2]
[351297492,1738509034403,-741.62,0.00011228,2]
[351297493,1738509034413,-500.0,0.00011228,2]
[351297494,1738509034423,-500.0,0.00011228,2]
[351297495,1738509034433,-879.04,0.00011228,2]
[351297496,1738509034443,-1102.18,0.00011228,2]
[351297497,1738509034452,-500.0,0.00011228,2]
[351297498,1738509034462,-824.59,0.00011228,2]
[351297499,1738509034471,-1362.96,0.00011228,2]
[351297500,1738509034481,-500.0,0.00011228,2]
[351297501,1738509034491,-533.1814503,0.00011228,2]
[351297502,1738509034500,-500.0,0.00011228,2]
[351297503,1738509034510,-500.0,0.00011228,2]
[351297504,1738509034520,-500.0,0.00011228,2]
[351297505,1738509034530,-500.0,0.00011228,2]
[351297506,1738509034540,-500.0,0.00011228,2]
[351297507,1738509034551,-984.81,0.00011228,2]
[351297508,1738509034562,-1459.42,0.00011228,2]
[351297509,1738509034572,-3568.69,0.00011228,2]
[351297510,1738509034581,-3396.6,0.00011228,2]
[351297511,1738509034591,-500.0,0.00011228,2]
[351297512,1738509034600,-503.13034414,0.00011228,2]
[351297513,1738509034610,-1017.83,0.00011228,2]
[351297514,1738509034620,-2119.42,0.00011228,2]
[351297515,1738509034629,-721.46,0.00011228,2]
[351297516,1738509034639,-500.0,0.00011228,2]
[351297517,1738509034649,-155.292379,0.00011228,2]
[351297518,1738509034659,-220.0298671,0.00011228,2]
[351297519,1738509034669,-1173.33,0.00011228,2]
[351297520,1738509034678,-841.66,0.00011228,2]
[351297521,1738509034687,-2223.55,0.00011228,2]
[351297522,1738509034698,-500.0,0.00011228,2]
[351297523,1738509034707,-659.43,0.00011228,2]
[351297524,1738509034717,-2149.13,0.00011228,2]
[351297525,1738509034726,-939.31,0.00011228,2]
[351297526,1738509034736,-500.0,0.00011228,2]
[351297527,1738509034746,-500.0,0.00011228,2]
[351297528,1738509034757,-500.0,0.00011228,2]
[351297529,1738509034766,-1948.92,0.00011228,2]
[351297530,1738509034776,-2088.25,0.00011228,2]
[351297531,1738509034786,-500.0,0.00011228,2]
[351297532,1738509034796,-2240.5,0.00011228,2]
[351297533,1738509034806,-500.0,0.00011228,2]
[351297534,1738509034816,-500.0,0.00011228,2]
[351297535,1738509034827,-1005.09,0.00011228,2]
[351297536,1738509034837,-500.0,0.00011228,2]
[351297537,1738509034847,-500.0,0.00011228,2]
[351297538,1738509034857,-500.0,0.00011228,2]
[351297539,1738509034866,-500.0,0.00011228,2]
[351297540,1738509034876,-500.0,0.00011228,2]
[351297541,1738509034886,-500.0,0.00011228,2]
[351297542,1738509034896,-999.63,0.00011228,2]
[351297543,1738509034906,-500.0,0.00011228,2]
[351297544,1738509034917,-500.0,0.00011228,2]
[351297545,1738509034926,-1978.46,0.00011228,2]
[351297546,1738509034935,-500.0,0.00011228,2]
[351297547,1738509034945,-4322.96,0.00011228,2]
[351297548,1738509034955,-924.06,0.00011228,2]
[351297549,1738509034964,-1885.88,0.00011228,2]
[351297550,1738509034975,-500.0,0.00011228,2]
[351297551,1738509034985,-540.14,0.00011228,2]
[351297552,1738509034994,-2839.36,0.00011228,2]
[351297553,1738509035004,-500.0,0.00011228,2]
[351297554,1738509035013,-500.0,0.00011228,2]
[351297555,1738509035023,-2577.93,0.00011228,2]